Cogmind - Beta 16.1 @@@ ROGUE MODE // 2026.03.19 @ 23:07:42 Player: Ceorik Result: Self-destructed Performance ------------- Evolutions (4) 2000 Regions Visited (10) 2000 Robots Destroyed (57) 285 Value Destroyed (1925) 1925 Prototype IDs (33) 660 Alien Tech Used (0) 0 Bonus (2335) 2335 TOTAL SCORE: 9205 Bonus ------- Follower Combat Kills 35 Aligned with FarCom 300 Destroyed Z-Imprinter 1000 Triggered Deep Caves Wall 500 Exposed GOLEM Chamber 500 Cogmind --------- Core Integrity 93/850 Matter 101/300 Energy 100/100 System Corruption 7% Temperature Cool (0) Movement Core (650) Ox12 Location -6/Deep Caves Parts ------- > --- POWER (2) -------- Zionite Light DM Reactor > --- PROPULSION (5) --- (None) > --- UTILITY (6) ------ Experimental Heat Sink Large Storage Unit > --- WEAPON (2) ------- Proton Missile Launcher > --- INVENTORY (15) --- Advanced Power Amplifier Gravity Neutralizer Zionite Weapon Casing Zionite Light Carapace Makeshift Hacking Suite Makeshift Hacking Suite Zionite Laser-S Proton Cannon Proton Cannon Heavy Plasma Cannon Battle Rifle Power Sword CR-A16's Pointy Stick Peak State ------------ > --- POWER ------------ Micro Nuclear Core Light Fission Core > --- PROPULSION ------- Xenon Bombardment Thruster Flying Fortress v7 > --- UTILITY ---------- Large Storage Unit Advanced Visual Processing Unit Cloaking Device Cloaking Device Hacking Suite Hacking Suite > --- WEAPON ----------- Antimatter Cannon Heavy Pick > --- INVENTORY -------- Improved Deuterium Engine Improved Carbon-fiber Leg Improved Carbon-fiber Leg Armored Leg Advanced Power Amplifier Compact Battery Layered Light Armor Plating Layered Light Armor Plating Arc Projector EM Pulse Cannon Improved EM Pulse Cannon Proton Missile Launcher Missile Launcher Heavy Mace Power Sword [Rating: 82] Favorites ----------- Power Fusion Compressor Engine Ion Engine Power Core Fusion Compressor Reactor Zionite Light DM Reactor Propulsion Gravmag Array Treads Light Treads Leg Armored Leg Wheel Wheel Hover Unit Gravmag Array Flight Unit Flying Fortress v7 Utility Large Storage Unit Device Experimental Heat Sink Storage Large Storage Unit Processor Enhanced Optical Array Hackware Hacking Suite Protection Improved Medium Armor Plating Weapon Heavy Pick Energy Gun Zionite Laser-S Energy Cannon Heavy Plasma Cannon Ballistic Gun Light Assault Rifle Ballistic Cannon Light Cannon Launcher Missile Launcher Special Weapon RU-N14's Throwing Claymores Impact Weapon Heavy Hammer Slashing Weapon Power Sword Piercing Weapon Heavy Pick Build | -11 -10 -10 -10 -9 -8 -7 -6 -6 -6 -6 ------- Run | Yrd Mat Min Exi Min Mat Fac Fac Low Zio Dee Slots Evolved 8 | . . . . . 4 2 2 . . . Power 1 | . . . . . . 1 . . . . Propulsion 3 | . . . . . 2 1 . . . . Utility 4 | . . . . . 2 . 2 . . . Weapon . | . . . . . . . . . . . Parts Attached 87 | 6 11 . . . 9 8 27 1 8 17 Power 13 | 1 1 . . . 1 2 5 1 . 2 Engine 5 | 1 1 . . . . 1 1 1 . . Core 6 | . . . . . 1 1 4 . . . Reactor 2 | . . . . . . . . . . 2 Propulsion 22 | 2 3 . . . 1 2 7 . . 7 Treads 3 | 2 1 . . . . . . . . . Leg 4 | . . . . . . . 3 . . 1 Wheel 3 | . 2 . . . . . 1 . . . Hover 9 | . . . . . . . 3 . . 6 Flight 3 | . . . . . 1 2 . . . . Utility 29 | 1 3 . . . 5 3 10 . 1 6 Device 7 | . 1 . . . 1 . 2 . 1 2 Storage 4 | 1 1 . . . . 1 . . . 1 Processor 5 | . . . . . 2 1 2 . . . Hackware 5 | . . . . . . 1 4 . . . Protection 8 | . 1 . . . 2 . 2 . . 3 Artifact . | . . . . . . . . . . . Weapon 23 | 2 4 . . . 2 1 5 . 7 2 Energy Gun 2 | . 1 . . . . . . . . 1 Energy Cannon 2 | . . . . . . . 1 . 1 . Ballistic Gun 2 | 2 . . . . . . . . . . Ballistic Cannon 2 | . . . . . 1 . 1 . . . Launcher 3 | . . . . . . . 2 . 1 . Special Weapon 5 | . 1 . . . . . . . 3 1 Impact Weapon 3 | . 2 . . . 1 . . . . . Slashing Weapon 1 | . . . . . . . . . 1 . Piercing Weapon 3 | . . . . . . 1 1 . 1 . Special Melee Weapon . | . . . . . . . . . . . Unidentified Prototypes 10 | . . . . . . . 1 . 2 7 Parts Lost 35 | . 2 . . . . . 7 1 5 20 Power 9 | . 1 . . . . . 4 1 1 2 Propulsion 12 | . 1 . . . . . 1 . 1 9 Utility 11 | . . . . . . . 1 . 2 8 Weapon 3 | . . . . . . . 1 . 1 1 Highest Loss Streak 8 | . 1 . . . . . 3 1 2 8 To Critical Strikes . | . . . . . . . . . . . Average Backups 12 | 3 8 15 13 12 14 14 13 13 13 11 Power . | . 1 1 1 1 1 . . . . . Propulsion 2 | 1 2 3 2 1 2 2 1 3 3 . Utility 4 | . 1 6 6 6 7 7 4 3 2 4 Weapon 5 | . 2 3 3 3 3 4 6 6 7 6 Tool/Special . | . . . . . . . . . . . Unused Backups 34 | . . 1 3 1 3 6 9 . 2 9 Power . | . . . . . . . . . . . Propulsion 7 | . . 1 2 . 1 . 1 . 2 . Utility 13 | . . . 1 . 1 2 3 . . 6 Weapon 13 | . . . . . 1 4 5 . . 3 Tool/Special 1 | . . . . 1 . . . . . . Average Slot Usage (%) 82 | . 90 100 100 100 69 75 85 85 81 60 Engine 4 | . 14 14 14 14 4 4 . 3 5 . Core 5 | . . . . . 4 9 11 9 6 . Reactor 1 | . . . . . . . . . . 9 Treads 3 | . 14 14 14 14 . . . . . . Leg 2 | . . . . . . . 7 . . 2 Wheel 3 | . 13 14 14 14 . . 1 . . . Hover 7 | . . . . . . . 4 20 19 6 Flight 2 | . . . . . 8 15 5 . . . Device 5 | . 4 14 14 14 4 . 4 . 2 9 Storage 8 | . 14 14 14 14 9 7 6 6 6 8 Processor 4 | . . . . . 12 15 7 6 6 . Hackware 9 | . . . . . . 4 18 20 13 . Protection 4 | . 1 . . . 7 2 2 6 5 10 Energy Cannon 2 | . . . . . . . 2 6 4 . Ballistic Gun 1 | . 21 . . . . . . . . . Impact Weapon 4 | . 1 28 28 28 10 4 . . . . Piercing Weapon 3 | . . . . . . 2 6 6 5 3 Peak Build Rating 82 | 6 12 13 15 16 53 63 82 74 78 77 Average Rating 54 | 5 7 12 13 15 50 59 72 73 73 56 On Entrance 35 | . 6 12 13 15 15 53 63 73 74 62 Avg Prop Armor Cover (%) 11 | . 13 15 14 15 . . 7 . . . Naked Turns . | . . . . . . . . . . . Heaviest Build 87 | 12 32 32 32 32 36 40 53 54 87 75 Greatest Support 57 | 40 20 10 20 10 50 57 57 49 49 46 Greatest Overweight (x) 14 | . 3 3 3 3 . . 2 1 1 14 Average Overweight (x) 1 | . 1 3 2 3 . . . . 1 2 Largest Inventory Capacity 15 | 8 15 15 15 15 15 15 15 15 15 15 Average Capacity 14 | 7 12 15 15 15 15 15 15 15 15 15 Most Carried 15 | 5 15 15 15 15 15 15 15 15 15 14 Average Carried 13 | 3 8 14 14 14 14 14 14 14 14 11 Final Capacity 15 | 8 15 15 15 15 15 15 15 15 15 15 Final Carried 15 | 5 15 15 15 15 15 15 15 15 11 13 Class Distribution -------------------- 46% | Hacker-Mutant 42% | Mutant 10% | Scavenger-Mutant Dominant Class ---------------- Mutant | -10/Materials Mutant | -10/Mines Mutant | -10/Exiles Mutant | -9/Mines Mutant | -8/Materials Mutant | -7/Factory Hacker-Mutant | -6/Factory Hacker-Mutant | -6/Lower Caves Hacker-Mutant | -6/Zion Scavenger-Mutant | -6/Deep Caves Resources | -11 -10 -10 -10 -9 -8 -7 -6 -6 -6 -6 ----------- Run | Yrd Mat Min Exi Min Mat Fac Fac Low Zio Dee Matter Collected 1588 | 274 152 23 . 10 81 . 426 108 94 420 Remotely . | . . . . . . . . . . . Salvage Created 2491 | 146 381 141 . . 128 . 642 45 141 867 Parts 122 | 6 22 3 . . 2 . 33 7 14 35 Haulers Intercepted 1 | . . . . . 1 . . . . . Recyclers Shooed 2 | 1 . . . . . . 1 . . . Parts Field Recycled . | . . . . . . . . . . . Retrieved Matter . | . . . . . . . . . . . Parts Self-Destructed 6 | . . . . . . . . 6 . . Prevented . | . . . . . . . . . . . Parts Restored . | . . . . . . . . . . . Kills | -11 -10 -10 -10 -9 -8 -7 -6 -6 -6 -6 ------- Run | Yrd Mat Min Exi Min Mat Fac Fac Low Zio Dee Combat Hostiles Destroyed 59 | . 9 2 . . 2 . 14 1 2 29 Melee 11 | . . . . . 1 . 5 1 1 3 Guns 12 | . 9 . . . . . . . . 3 Cannons 2 | . . . . . . . 2 . . . AOE 28 | . . . . . . . 7 . 1 20 Classes Destroyed 16 | 2 2 1 . . 2 . 3 . 2 4 Worker 2 | . . 1 . . . . 1 . . . Builder 2 | . . . . . . . 2 . . . Tunneler 4 | 2 . 2 . . . . . . . . Hauler 1 | . . . . . 1 . . . . . Recycler 3 | 1 1 . . . . . 1 . . . Watcher 1 | . . . . . . . 1 . . . Swarmer 10 | . 3 . . . . . 7 . . . Grunt 8 | . 6 2 . . . . . . . . Sentry 4 | . . . . . 2 . 2 . . . Programmer 6 | . . . . . . . 5 1 . . Zionite 7 | . . . . . . . . . 7 . Z-Technician 5 | . . . . . . . . . . 5 Z-Light 5 | . . . . . . . . . . 5 Assembled 21 | . . . . . . . . . . 21 Golem 2 | . . . . . . . . . . 2 Thug 1 | . . . . . . . . . 1 . Mutant 1 | . . . . . . . . . 1 . Best Kill Streak 19 | 3 3 2 . . 1 . 5 1 7 19 Combat Bots Only 19 | . 3 2 . . 1 . 4 1 1 19 Max Kills in Single Turn 4 | 1 1 1 . . 1 . 3 1 3 4 Gunslinging . | . . . . . . . . . . . Exploded 4 | . . . . . . . 3 . 1 4 Melee 1 | . . . . . 1 . 1 1 1 1 Uniques/NPCs Destroyed 1 | . . . . . . . . . . 1 Z-Imprinter (-6/Deep Caves) Combat | -11 -10 -10 -10 -9 -8 -7 -6 -6 -6 -6 -------- Run | Yrd Mat Min Exi Min Mat Fac Fac Low Zio Dee Hostile Shots Fired 546 | . 47 9 . . 20 99 183 4 66 118 Missed 181 | . 10 1 . . 5 63 52 1 22 27 Hits 365 | . 37 8 . . 15 36 131 3 44 91 Melee 16 | . . . . . . . . . 9 7 Projectile 349 | . 37 8 . . 15 36 131 3 35 84 AOE 2 | . . . . . . . 2 . . . Critical Strikes 6 | . . . . . 1 . 3 1 1 . Part Disruptions 4 | . . . . . . . 2 . 1 1 Damage Taken 7049 | . 465 96 . . 220 278 2146 42 1062 2740 Core 949 | . 103 10 . . 18 61 131 . 58 568 Absorbed by Shields . | . . . . . . . . . . . Redirected to Shielding 279 | . 11 . . . . . . . . 268 Core Remaining (%) 85 | 100 . . . 54 96 91 . . . . Volleys Fired 113 | 7 40 . . . . . 19 . 13 34 Largest 2 | 2 2 . . . . . 1 . 1 1 Hottest 100 | 40 100 . . . . . 90 . 75 60 Shots Fired 161 | 14 79 . . . . . 19 . 13 36 Gun 101 | 14 78 . . . . . . . . 9 Cannon 18 | . . . . . . . 12 . 6 . Launcher 29 | . . . . . . . 7 . 1 21 Special 13 | . 1 . . . . . . . 6 6 Kinetic 77 | 14 63 . . . . . . . . . Thermal 37 | . 16 . . . . . 12 . . 9 Explosive 26 | . . . . . . . 7 . 6 13 Electromagnetic 21 | . . . . . . . . . 7 14 Robot Hit Streak 15 | 9 14 . . . . . 15 . 5 3 Robot Miss Streak 4 | 1 4 . . . . . 1 . 2 3 Penetration Max . | . . . . . . . . . . . Secondary Targets . | . . . . . . . . . . . Shots Hit Robots 183 | 12 54 11 . . 17 7 31 2 12 37 Core Hits 140 | 6 21 1 . . 2 1 25 1 9 74 Critical Kills 1 | . . . . . 1 . . . . . Critical Parts Destroyed 4 | 1 . . . . 2 1 . . . . Critical Strikes 11 | 1 . . . . 4 1 . . . 5 Destroy 1 | 1 . . . . . . . . . . Smash 5 | . . . . . 4 1 . . . . Sever 3 | . . . . . . . . . . 3 Impale 2 | . . . . . . . . . . 2 Melee Attacks 138 | . . 13 . . 18 18 42 3 11 33 Impact 48 | . . 13 . . 18 17 . . . . Slashing 11 | . . . . . . . . . 3 8 Piercing 79 | . . . . . . 1 42 3 8 25 Sneak Attacks 16 | . . 3 . . 1 . 3 1 . 8 Combat Hostiles . | . . . . . . . . . . . Follow-up Attacks 4 | . . 4 . . . . . . . . Damage Inflicted 8952 | 92 466 575 . . 705 212 1715 96 1025 4066 Guns 701 | 92 466 . . . . . . . . 143 Cannons 384 | . . . . . . . 331 . 53 . Explosions 3816 | . . . . . . . 545 . 624 2647 Melee 3833 | . . 575 . . 705 212 839 96 273 1133 Ramming 20 | . . . . . . . . . . 20 Kinetic 428 | 92 336 . . . . . . . . . Thermal 769 | . 130 . . . . . 331 . . 308 Explosive 3227 | . . . . . . . 545 . 624 2058 Electromagnetic 477 | . . . . . . . . . 53 424 Impact 1492 | . . 575 . . 705 212 . . . . Slashing 505 | . . . . . . . . . 148 357 Piercing 2034 | . . . . . . . 839 96 200 899 Highest Corruption 7 | . . . . . . . 2 2 7 7 Average Corruption 3 | . . . . . . . 1 2 2 7 Corruption Purged . | . . . . . . . . . . . Corruption Blocked . | . . . . . . . . . . . Effects 64 | . . . . . . . 26 4 2 32 Message Errors 18 | . . . . . . . 4 . 2 12 Matter Fused 13 | . . . . . . . 7 . . 6 Heat Flow Errors 10 | . . . . . . . 5 2 . 3 Energy Discharges 8 | . . . . . . . 1 1 . 6 Parts Rejected 2 | . . . . . . . 2 . . . Parts Fused 2 | . . . . . . . 2 . . . Data Loss (minor) 6 | . . . . . . . 3 . . 3 Data Loss (major) 2 | . . . . . . . 1 1 . . Misfires 2 | . . . . . . . . . . 2 Alerts 1 | . . . . . . . 1 . . . Overload Shots . | . . . . . . . . . . . Overflow Damage 687 | . . 159 . . 72 19 68 19 32 318 Projectiles 4 | . . . . . . . . . 4 . Explosions 197 | . . . . . . . 22 . 28 147 Melee 486 | . . 159 . . 72 19 46 19 . 171 Knockbacks 3 | . . 2 . . . . . . . 1 Impact 3 | . . 2 . . . . . . . 1 Kinetic . | . . . . . . . . . . . Secondary . | . . . . . . . . . . . Self-Inflicted Damage 269 | . . . . . . . 127 . . 142 Shots 7 | . . . . . . . 3 . . 4 Rammed 3 | . . . . . . . . . . 3 Targets Rammed 3 | . . . . . . . . . . 3 Kicked . | . . . . . . . . . . . Crushed . | . . . . . . . . . . . Highest Temperature 386 | . 47 . . . 17 5 271 182 346 386 Average Temperature 102 | . 14 . . . 11 1 75 76 165 132 Received Heat Transfer 1378 | . 207 51 . . 81 84 216 . 141 598 Effects 4 | . . . . . . . 1 . 2 1 Shutdowns 1 | . . . . . . . . . 1 . Energy Bleed 1 | . . . . . . . 1 . . . Interference 1 | . . . . . . . . . . 1 Matter Decay 1 | . . . . . . . . . 1 . Siege Activations . | . . . . . . . . . . . Martial Activations . | . . . . . . . . . . . Shielding Activations . | . . . . . . . . . . . Robots Disrupted . | . . . . . . . . . . . Combat Hostiles . | . . . . . . . . . . . Robots Corrupted 8 | . . 4 . . 1 . . . . 3 Combat Hostiles 6 | . . 2 . . 1 . . . . 3 Parts Fried 14 | . . 5 . . 3 . . . . 6 Impact Corruptions 13 | . . 7 . . 5 1 . . . . Robots Melted . | . . . . . . . . . . . Combat Hostiles . | . . . . . . . . . . . Parts Melted 2 | . . . . . . . 2 . . . Heat Transferred 1035 | . 300 . . . . . 450 . . 285 Parts Sabotaged . | . . . . . . . . . . . Parts Stolen . | . . . . . . . . . . . Parts Stripped . | . . . . . . . . . . . Power Chain Reactions 1 | . . . . . . . . . . 1 Alert | -11 -10 -10 -10 -9 -8 -7 -6 -6 -6 -6 ------- Run | Yrd Mat Min Exi Min Mat Fac Fac Low Zio Dee Maximum Alert Level 1 | . . . . . . . 1 . . . Low Security (%) 99 | 100 100 100 . 100 100 100 98 . . . Level 1 . | . . . . . . . 1 . . . Level 2 . | . . . . . . . . . . . Level 3 . | . . . . . . . . . . . Level 4 . | . . . . . . . . . . . Level 5 . | . . . . . . . . . . . High Security . | . . . . . . . . . . . Max Security . | . . . . . . . . . . . Peak Influence 214 | 10 83 50 . . 40 51 214 . . . Initial 25 | . . 25 . . . 2 19 . . . Average 36 | . 26 8 . . 12 13 55 . . . Influence Increases 1232 | 15 246 65 . . 133 113 630 30 . . Destroy 0b10 Robot/C 600 | . 180 40 . . 80 . 280 20 . . Destroy 0b10 Robot/NC 65 | 15 5 15 . . 5 . 25 . . . Destroy Leader 164 | . 30 10 . . 32 . 82 10 . . Allied During Kill 3 | . . . . . 3 . . . . . Successful Hack 62 | . . . . . 13 28 21 . . . Disable Machine 135 | . . . . . . 15 120 . . . Destroy Structure 83 | . 1 . . . . 10 72 . . . Partial Spotted 15 | . . . . . . 15 . . . . Lose Combat Pursuer 105 | . 30 . . . . 45 30 . . . Influence Decreases 1232 | 15 179 132 . . 126 79 653 48 . . Entered New Map 77 | . . 42 . . . 5 22 8 . . Time Decay 986 | 15 159 90 . . 86 74 522 40 . . Lost Part 70 | . 20 . . . . . 50 . . . Lost Ally 40 | . . . . . 40 . . . . . Purge Threat 59 | . . . . . . . 59 . . . Squads Dispatched 8 | . 3 . . . . . 5 . . . Investigation 2 | . 2 . . . . . . . . . Extermination 5 | . . . . . . . 5 . . . Reinforcement 1 | . 1 . . . . . . . . . Assault . | . . . . . . . . . . . Garrison . | . . . . . . . . . . . Intercept . | . . . . . . . . . . . Searches Triggered . | . . . . . . . . . . . Construction Impeded . | . . . . . . . . . . . Haulers Reinforced . | . . . . . . . . . . . Active Scanning Responses . | . . . . . . . . . . . Cargo Convoy Interrupts . | . . . . . . . . . . . Stealth | -11 -10 -10 -10 -9 -8 -7 -6 -6 -6 -6 --------- Run | Yrd Mat Min Exi Min Mat Fac Fac Low Zio Dee Distress Signals 2 | . . . . . 1 . 1 . . . Communications Jammed . | . . . . . . . . . . . Distress Signals . | . . . . . . . . . . . Times Spotted 113 | . 14 2 . . 3 4 26 1 10 53 Peak Tracking Total 31 | . 3 2 . . 2 5 7 1 3 31 Tactical Retreats 8 | . 2 . . . . 3 1 . . 2 Traps | -11 -10 -10 -10 -9 -8 -7 -6 -6 -6 -6 ------- Run | Yrd Mat Min Exi Min Mat Fac Fac Low Zio Dee Traps Triggered 8 | . 3 . . . . 1 4 . . . Indirectly . | . . . . . . . . . . . Trap Hack Attempts . | . . . . . . . . . . . Triggered . | . . . . . . . . . . . Disarmed . | . . . . . . . . . . . Reprogrammed . | . . . . . . . . . . . Reused 2 | . . . . . . . . . 2 . Traps Extracted . | . . . . . . . . . . . Installed 4 | . . . . . . . . . 4 . Triggered . | . . . . . . . . . . . Fabricated Traps 4 | . . . . . . . . . 4 . Machines | -11 -10 -10 -10 -9 -8 -7 -6 -6 -6 -6 ---------- Run | Yrd Mat Min Exi Min Mat Fac Fac Low Zio Dee Machines Disabled 10 | . . . . . . 1 8 . . 1 Max in Single Turn 5 | . . . . . . 1 5 . . 1 Garrison Access 4 | . . . . . 1 . 3 . . . Machines Repaired . | . . . . . . . . . . . Machines Dismantled . | . . . . . . . . . . . Machines Sabotaged . | . . . . . . . . . . . Overloaded Fab Kills . | . . . . . . . . . . . Hacking | -11 -10 -10 -10 -9 -8 -7 -6 -6 -6 -6 --------- Run | Yrd Mat Min Exi Min Mat Fac Fac Low Zio Dee Machines Accessed 23 | . 2 . 2 . 6 4 9 . . . Terminals 11 | . 1 . . . 3 2 5 . . . Fabricators 1 | . . . . . . 1 . . . . Repair Stations . | . . . . . . . . . . . Recycling Units 2 | . 1 . . . 1 . . . . . Scanalyzers 3 | . . . . . 1 1 1 . . . Garrison Access 4 | . . . . . 1 . 3 . . . Total Hacks 49 | . 5 . 2 . 13 6 23 . . . Successful 28 | . 3 . 2 . 9 4 10 . . . Failed 20 | . 2 . . . 4 2 12 . . . Catastrophic 5 | . . . . . . 1 4 . . . Database Lockouts 1 | . . . . . . . 1 . . . Manual 16 | . 3 . 1 . 5 2 5 . . . Terminals 31 | . 4 . . . 7 4 16 . . . Fabricators 1 | . . . . . . 1 . . . . Repair Stations . | . . . . . . . . . . . Recycling Units 2 | . 1 . . . 1 . . . . . Scanalyzers 6 | . . . . . 3 1 2 . . . Garrison Access 7 | . . . . . 2 . 5 . . . Terminal Hacks 10 | . 1 . 2 . 1 1 5 . . . Record 1 | . . . 1 . . . . . . . Level Access Points 1 | . . . . . . . 1 . . . Branch Access Points 1 | . . . . . . . 1 . . . Unreport Threat 2 | . . . . . . . 2 . . . Locate Traps 1 | . . . . . . . 1 . . . Hauler Manifests 1 | . . . . . 1 . . . . . Registered Components 1 | . . . . . . 1 . . . . Zone Layout 1 | . 1 . . . . . . . . . Proto ID Catalog 1 | . . . 1 . . . . . . . Fabricator Hacks 1 | . . . . . . 1 . . . . Build 1 | . . . . . . 1 . . . . Repair Station Hacks . | . . . . . . . . . . . Recycling Unit Hacks 2 | . 1 . . . 1 . . . . . Report Inventory 2 | . 1 . . . 1 . . . . . Scanalyzer 5 | . . . . . 3 1 1 . . . Retrieve Study 5 | . . . . . 3 1 1 . . . Garrison Access Hacks 4 | . . . . . 1 . 3 . . . Seal Access 4 | . . . . . 1 . 3 . . . Unauthorized Hacks 6 | . 1 . . . 3 1 1 . . . Terminals 6 | . 1 . . . 3 1 1 . . . Botnet 6 | . 1 . . . 3 1 1 . . . Fabricators . | . . . . . . . . . . . Repair Stations . | . . . . . . . . . . . Recycling Units . | . . . . . . . . . . . Scanalyzers . | . . . . . . . . . . . Garrison Access . | . . . . . . . . . . . Data Cores Recovered . | . . . . . . . . . . . Used . | . . . . . . . . . . . Hacking Detections 17 | . 1 . . . 6 4 6 . . . Full Trace Events . | . . . . . . . . . . . Feedback Events . | . . . . . . . . . . . Feedback Blocked . | . . . . . . . . . . . Robot Schematics Acquired 4 | . . . . . . . . . 4 . Robots Built . | . . . . . . . . . . . Authchips . | . . . . . . . . . . . Time . | . . . . . . . . . . . Total Robot Build Rating . | . . . . . . . . . . . Part Schematics Acquired 13 | . . . . . . . . . 13 . Parts Built 2 | . . . . . . 2 . . . . Authchips . | . . . . . . . . . . . Time 58 | . . . . . . 58 . . . . Total Part Build Rating 14 | . . . . . . 14 . . . . Part Studies Acquired 5 | . . . . . 3 1 1 . . . Parts Repaired . | . . . . . . . . . . . Time . | . . . . . . . . . . . Parts Recycled . | . . . . . . . . . . . Recycled Matter . | . . . . . . . . . . . Retrieved Matter . | . . . . . . . . . . . Retrieved Components . | . . . . . . . . . . . Parts Scanalyzed . | . . . . . . . . . . . Part Schematics Acquired . | . . . . . . . . . . . Parts Damaged . | . . . . . . . . . . . Bothacking | -11 -10 -10 -10 -9 -8 -7 -6 -6 -6 -6 ------------ Run | Yrd Mat Min Exi Min Mat Fac Fac Low Zio Dee Used RIF Installer . | . . . . . . . . . . . Robots Hacked . | . . . . . . . . . . . Non-combat . | . . . . . . . . . . . Combat . | . . . . . . . . . . . Robot Hacks Applied . | . . . . . . . . . . . Relay Couplers Released . | . . . . . . . . . . . Fabnet Peak Effective % . | . . . . . . . . . . . Robots Rewired . | . . . . . . . . . . . Allies Hacked . | . . . . . . . . . . . Hacks Repelled . | . . . . . . . . . . . Allies | -11 -10 -10 -10 -9 -8 -7 -6 -6 -6 -6 -------- Run | Yrd Mat Min Exi Min Mat Fac Fac Low Zio Dee Total Allies 3 | . . 3 . . . . . . . . Largest Group 3 | . . 3 3 3 3 . . . . . Highest-Rated Group 40 | . . 40 40 40 40 . . . . . Highest-Rated Ally 16 | . . 16 16 16 16 . . . . . Total Orders 5 | . . . 2 2 1 . . . . . STAY 2 | . . . 1 1 . . . . . . ROAM 1 | . . . . . 1 . . . . . FOLLOW 2 | . . . 1 1 . . . . . . Ally Attacks 16 | . . . . 2 14 . . . . . Total Damage 202 | . . . . 32 170 . . . . . Kills 2 | . . . . . 2 . . . . . Allies Corrupted . | . . . . . . . . . . . Allies Melted . | . . . . . . . . . . . Intel | -11 -10 -10 -10 -9 -8 -7 -6 -6 -6 -6 ------- Run | Yrd Mat Min Exi Min Mat Fac Fac Low Zio Dee Active Infowar (turns) 4438 | . . . . . 225 259 2250 458 1246 . Optics 4380 | . . . . . 167 259 2250 458 1246 . Terrain 58 | . . . . . 58 . . . . . Cloaking 758 | . . . . . . . 758 . . . Robot Analysis Total . | . . . . . . . . . . . Derelict Logs Recovered 6 | . . 2 . . . . . 3 1 . Drone Launches . | . . . . . . . . . . . Drone Recoveries . | . . . . . . . . . . . Exploration | -11 -10 -10 -10 -9 -8 -7 -6 -6 -6 -6 ------------- Run | Yrd Mat Min Exi Min Mat Fac Fac Low Zio Dee Turns Passed 7288 | 138 604 515 303 116 304 259 2250 458 1251 1090 Spaces Moved 5444 | 69 358 384 230 49 377 392 1787 423 977 398 Core 26 | 3 . . . . . . . . . 23 Treads 93 | 66 17 . 10 . . . . . . . Legs 381 | . . . . . . . 289 . . 92 Wheels 1054 | . 341 384 220 49 . . 60 . . . Hover 2146 | . . . . . . . 463 423 977 283 Flight 1744 | . . . . . 377 392 975 . . . Fastest Speed 42 | 50 95 125 125 125 50 42 42 52 105 44 Average Speed 100 | 155 109 125 130 125 50 42 82 104 105 205 Slowest Speed 750 | 160 240 125 240 125 50 42 260 105 106 750 Overloaded Moves . | . . . . . . . . . . . Propulsion Burnouts . | . . . . . . . . . . . Robots Hopped 2 | . . . . . 1 . 1 . . . Potential Cave-ins . | . . . . . . . . . . . Cave-ins Triggered 1 | . . . . . . . 1 . . . Exploration Rate (%) 46 | 5 57 74 60 9 34 11 45 75 85 57 Regions Visited 10 Branch Regions 6 Pre-discovered Areas 4 | . . 1 1 . . . . . 2 . Known Exits Taken 2 | . . . . . . 1 1 . . . Unknown Exits Taken 8 | 1 1 1 1 1 1 . . 1 1 . Scrap Searched 6 | . . 2 . . . . . 2 2 . Spaces Dug 32 | . 1 . . . . 10 21 . . . Terrain Destroyed 138 | . 1 . . . . 10 78 . 19 30 Melee 23 | . . . . . . 10 13 . . . Projectile 8 | . 1 . . . . . 3 . . 4 AOE 107 | . . . . . . . 62 . 19 26 Terrain Rammed . | . . . . . . . . . . . Walls Destroyed . | . . . . . . . . . . . Machines Disabled . | . . . . . . . . . . . Actions | -11 -10 -10 -10 -9 -8 -7 -6 -6 -6 -6 --------- Run | Yrd Mat Min Exi Min Mat Fac Fac Low Zio Dee Total 6874 | 86 500 403 236 106 463 458 2461 431 1168 562 Wait 928 | . 69 7 . 50 40 17 536 4 143 62 Move 5430 | 68 357 383 229 48 374 391 1784 422 976 398 Hop 2 | . . . . . 1 . 1 . . . Pick Up 80 | 5 16 2 1 4 11 10 20 1 4 6 Fast Attach 41 | 6 2 . . . 2 2 14 . 2 13 Attach 31 | . 4 . . . 3 2 10 1 4 7 Detach 4 | . . . . . . . 1 . . 3 Swap 31 | . 6 . 1 . 4 4 9 . 4 3 Drop 70 | . 6 2 5 4 10 11 25 . 7 . Fire 113 | 7 40 . . . . . 19 . 13 34 Melee 134 | . . 9 . . 18 18 42 3 11 33 Ram 3 | . . . . . . . . . . 3 Kick . | . . . . . . . . . . . Crush . | . . . . . . . . . . . Escape Stasis 3 | . . . . . . 3 . . . . Rewire . | . . . . . . . . . . . Trap 4 | . . . . . . . . . 4 . Miscellaneous . | . . . . . . . . . . . Route ------- -11/Scrapyard -10/Materials (discovered 2 exits: [*Mat] / [*Min]) -10/Mines (discovered 2 exits: [*Mat] / *Exi) -10/Exiles -9/Mines -8/Materials -7/Factory -6/Factory (discovered 8 exits: *Fac x4 / *Low x2 / Ext x2) -6/Lower Caves (discovered 2 exits: [*Low] / [*Zio]) -6/Zion (discovered 2 exits: [*Dee] / [*Pro]) -6/Deep Caves History --------- Turn | Location | Event 6 | -11/Scrapyard | Discovered new exit (range 14) 139 | -11/Scrapyard | Entered Materials 140 | -10/Materials | Met a group of wandering Federalists 317 | -10/Materials | Build established: Mutant 348 | -10/Materials | Discovered new exit (range 6) 685 | -10/Materials | Discovered new exit (range 12) 743 | -10/Materials | Entered Mines 896 | -10/Mines | Learned Materials stockpile data 999 | -10/Mines | Discovered new exit (range 9) 1073 | -10/Mines | Found a hidden stash of uninstalled traps 1079 | -10/Mines | Learned location of Zion (-6) 1146 | -10/Mines | Assisted by bots powering up and referring to "LRC-V3" 1252 | -10/Mines | Deemed a non-threat by the Exiles lab entrance 1252 | -10/Mines | Discovered new exit (range 5) 1258 | -10/Mines | Entered Exiles 1258 | -10/Exiles | Accompanied by 3 allies 1288 | -10/Exiles | Met 8R-AWN 1311 | -10/Exiles | Met EX-HEX 1356 | -10/Exiles | Met EX-BIN 1373 | -10/Exiles | Aligned with FarCom system 1375 | -10/Exiles | Given EX-Vault access code 1406 | -10/Exiles | Opened EX-Vault 1417 | -10/Exiles | Found Flying Fortress v7 1459 | -10/Exiles | Warned to stay clear of 0b10 Research branches 1546 | -10/Exiles | Discovered new exit (range 12) 1561 | -10/Exiles | Left Exiles lab with Flying Fortress v7 1561 | -10/Exiles | Entered Mines 1561 | -9/Mines | Accompanied by 3 allies 1562 | -9/Mines | Assembled infested the area 1610 | -9/Mines | Discovered new exit (range 5) 1630 | -9/Mines | Joined a pair of Derelicts in attacking an 0b10 outpost 1677 | -9/Mines | Entered Materials 1677 | -8/Materials | Accompanied by 3 allies 1677 | -8/Materials | Evolved 4 slots: Propulsion x2, Utility x2 1976 | -8/Materials | Discovered new exit (range 10) 1981 | -8/Materials | Entered Factory 1981 | -7/Factory | Evolved 2 slots: Power x1, Propulsion x1 2163 | -7/Factory | Discovered new exit (range 6) 2217 | -7/Factory | Identified exit to Factory 2233 | -7/Factory | Fabricated Adv. Power Amplifier (x2) 2240 | -7/Factory | Entered another Factory area 2240 | -6/Factory | Evolved 2 slots: Utility x2 2358 | -6/Factory | Identified exit to Factory 2437 | -6/Factory | Central database locked down 2530 | -6/Factory | Build established: Hacker-Mutant 2598 | -6/Factory | Crushed by falling debris 3779 | -6/Factory | Lost 3 parts (2p1u) 4099 | -6/Factory | Identified exit to Lower Caves 4099 | -6/Factory | Identified exit to Extension 4409 | -6/Factory | Spotted B-75 Beast 4490 | -6/Factory | Entered Lower Caves 4519 | -6/Lower Caves | Learned Factory security intel 4751 | -6/Lower Caves | Learned Factory stockpile data 4812 | -6/Lower Caves | Learned Factory emergency access door positions 4869 | -6/Lower Caves | Encountered a Warlord checkpoint 4941 | -6/Lower Caves | Discovered new exit (range 8) 4943 | -6/Lower Caves | A Derelict revealed a hidden shortcut to a safe place 4948 | -6/Lower Caves | Entered Zion 4996 | -6/Zion | System corruption cleaned by Quarantine Array 5049 | -6/Zion | Discovered new exit (range 11) 5274 | -6/Zion | Found CR-A16's Pointy Stick 5485 | -6/Zion | Learned location of Warlord (-4) 5614 | -6/Zion | Found Prototype Device 5614 | -6/Zion | Identified Bomb Factory No. 2 5744 | -6/Zion | Found Prototype Special Weapon 5746 | -6/Zion | Found Prototype Special Weapon 5748 | -6/Zion | Found Prototype Special Weapon 5750 | -6/Zion | Found Prototype Special Weapon 5910 | -6/Zion | Warned about trapping Zion interior 5914 | -6/Zion | Build established: Mutant 5934 | -6/Zion | Identified RU-N14's Throwing Claymores (x4) 5972 | -6/Zion | Attacked by Zionites 6196 | -6/Zion | Discovered new exit (range 3) 6196 | -6/Zion | Saw the warning signs outside the Deep Caves entrance 6199 | -6/Zion | Entered Deep Caves 6276 | -6/Deep Caves | Attacked by Z-Imprinter 6280 | -6/Deep Caves | Destroyed Z-Imprinter 6330 | -6/Deep Caves | Found Prototype Protection 6330 | -6/Deep Caves | Identified Zio. Weapon Casing 6367 | -6/Deep Caves | Core integrity fell below 50% 6384 | -6/Deep Caves | Lost 8 parts (1p3n4u) 6504 | -6/Deep Caves | Found Zio. Weapon Casing 6761 | -6/Deep Caves | Found Zio. Weapon Casing 6762 | -6/Deep Caves | Lost 3 parts (3n) 6793 | -6/Deep Caves | Build established: Scavenger-Mutant 6922 | -6/Deep Caves | Lost 3 parts (2n1u) 7125 | -6/Deep Caves | Spotted Golem 7184 | -6/Deep Caves | Core integrity fell below 20% 7185 | -6/Deep Caves | Destroyed Golem 7260 | -6/Deep Caves | Triggered Deep Caves wall 7271 | -6/Deep Caves | Spotted Assembler 7275 | -6/Deep Caves | Exposed GOLEM chamber 7289 | -6/Deep Caves | Self-destructed Last Messages --------------- integration. 07285_ Zio. Weapon Casing destroyed. 07285_ A GOLEM Unit tumbles out of the Wall Chamber. 07285_ as-53526 destroyed. 07287_ GOLEM Unit springs to life. 07287_ Destroyed Asb. Hover System. 07287_ Destroyed Asb. P-sword. 07287_ as-63074 destroyed. 07287_ Imp. Grenade Launcher destroyed. 07287_ Destroyed Imp. Grenade Launcher. 07288_ Golem GOLEM Unit beginning Prototype Leg integration. 07288_ GOLEM Unit springs to life. 07289_ as-49365 released from Mobile Assembly Unit. 07289_ Golem GOLEM Unit beginning Prototype Leg integration. 07289_ GOLEM Unit springs to life. 07289_ Knocked back. Map ----- +----------------------------------------------------+ | ????????????????? ?????????????? | | ?????????????? ?????????????? | | ???????????? ???##????????? | | ?????????? ??? #????????? | | ?????????? & ### #????????? | | ????????? # ????????? | | ????????? // ##???????? | | ????????# ###?????? | | ????????# ??????? | | ????????# [ #???????? | | ???????? [ ##??????? | | ???????? a [ #??????? | | ???????? #??????? | | ???????? a [ #??????? | | ???????##a =[ ! #??????? | | ???????"!a = !! #???#### | | ??????#"!Ga #??## # | | ???????!!G a l s #??# # | | ???????"!! ! #### | | ????????GG = * ## | | ????????#aGa * "# ## | | ????????" ## # | | ????????" ! ## | | ????????" a ! ! | | ????????""" ** | | ????????" @ | | ????????"" ### | | ????????" b #?## # | | ????????"" ##??#### | | ????????" # # #??????? | | ????????" #### ## ## ##??????? | | ????????""" ###??# ## ####???????? | | ?????????" ????#### #??????????? | | ?????????######????????#???????????? | | | | | | | | | | | | | | | | | | | | | | | | | | | | | | | | | +----------------------------------------------------+ Best States ------------- Heat Dissipation 89 Energy Generation 49 Energy Capacity 700 Matter Stores 300 Matter Capacity 300 Sight Range 22 Terrain Scan Range 16 Terrain Scan Density 110 Cloak Strength 3 Armor Coverage 225 Core Shielding 20 Weapon Shielding 100 Evasion (%) 61 Targeting Accuracy 6 Recoil Reduction 2 Offensive Hacking 20 Defensive Hacking 24 Item Schematics ----------------- Adv. Signal Interpreter | -6/Zion | Archive Imp. Recalibrator | -6/Zion | Archive Imp. Thermal Shield | -6/Zion | Archive Imp. System Restoration Module | -6/Zion | Archive Imp. Arc Projector | -6/Zion | Archive Hpw. Shock Rifle | -6/Zion | Archive Hvy. Gauss Cannon | -6/Zion | Archive Adv. Heat Sink | -6/Zion | Archive Lyr. Medium Armor Plating | -6/Zion | Archive KE Penetrator | -6/Zion | Archive Energy Well | -6/Zion | Archive Field Propulsion Drive | -6/Zion | Archive Lgt. Angular Momentum Engine | -6/Zion | Archive Robot Schematics ------------------ B-48 Gladiator | -6/Zion | Archive O-24 Administrator | -6/Zion | Archive D-53 Grenadier | -6/Zion | Archive H-77 Assassin | -6/Zion | Archive Fabricated ------------ Adv. Power Amplifier | x2 | -7/Factory | Preloaded Repaired ---------- Nothing Studied --------- Hvy. Mace | -8/Materials | Hacked Lgt. EM Pulse Cannon | -8/Materials | Hacked Ion Engine | -8/Materials | Hacked Xenon Bombardment Thruster | -7/Factory | Hacked Arc Projector | -6/Factory | Hacked Alien Tech Used ----------------- None Achievements -------------- None Challenges ------------ None Game ------ Seed MultinovaChipShockpuncher Manual? 0 Play Time 00:56:24 Cumulative 133.9 hours Start 2026.03.19 @ 22:10:35 End 2026.03.19 @ 23:07:42 Sessions 1 Manual Loads 0 Difficulty Rogue Special Mode None Game No. 110 Rogue 110 Adventurer 0 Explorer 0 Win Type - Total 2 Types 2/0/0/0/0/0/0/0/0/0 Lore% 68 Gallery% 56 Achievement% 49 Wizard Run 0 Options --------- Layout 2 ASCII 0 Keyboard 0 Movement Mouse Keybinds 0 Fullscreen 1 Font 24/Smallcaps Map View 50x44 Zoom Use 0% Tactical HUD 1 Map Filters NONE Filters NONE Steam 1 RUN: 22547873-a6a1-4848-be6d-1b88ccc9f820